[Event "December 5 Late 2023"]
[Site "https://www.chess.com"]
[Date "2023.12.05"]
[Round "9"]
[White "Thomforde-Toates, Noah"]
[Black "DCacheiro"]
[Result "0-1"]
[Board "50"]
[TimeControl "180+1"]
[WhiteFideId "30951992"]
[WhiteElo "2649"]
[BlackElo "2489"]
[WhiteTeam "USA"]
[WhiteClock "0:00:08"]
[BlackClock "0:00:31"]

1. d4 {[%clk 0:02:35]}  Nf6 {[%clk 0:02:59]} 2. Nc3 {[%clk 0:02:34]}  d5 {[%clk 0:02:59]} 3. Bf4 {[%clk 0:02:28]}  g6 {[%clk 0:02:58]} 4. e3 {[%clk 0:02:26]}  Bg7 {[%clk 0:02:58]} 5. h4 {[%clk 0:02:22]}  h5 {[%clk 0:02:57]} 6. Nf3 {[%clk 0:02:21]}  O-O {[%clk 0:02:58]} 7. Ne5 {[%clk 0:02:16]}  c5 {[%clk 0:02:57]} 8. dxc5 {[%clk 0:02:01]}  Nbd7 {[%clk 0:02:30]} 9. b4 {[%clk 0:01:57]}  Ng4 {[%clk 0:02:21]} 10. Nxd5 {[%clk 0:01:41]}  Ndxe5 {[%clk 0:02:11]} 11. Bg5 {[%clk 0:01:28]}  Nf6 {[%clk 0:01:46]} 12. c4 {[%clk 0:01:19]}  Be6 {[%clk 0:01:42]} 13. Bxf6 {[%clk 0:00:55]}  Bxf6 {[%clk 0:01:30]} 14. e4 {[%clk 0:00:54]}  Bg7 {[%clk 0:01:26]} 15. Rc1 {[%clk 0:00:16]}  Rc8 {[%clk 0:01:07]} 16. Be2 {[%clk 0:00:15]}  a5 {[%clk 0:01:04]} 17. a3 {[%clk 0:00:15]}  axb4 {[%clk 0:01:04]} 18. axb4 {[%clk 0:00:16]}  Nc6 {[%clk 0:01:01]} 19. b5 {[%clk 0:00:15]}  Nd4 {[%clk 0:00:59]} 20. O-O {[%clk 0:00:14]}  Rxc5 {[%clk 0:00:57]} 21. Bd3 {[%clk 0:00:14]}  Bxd5 {[%clk 0:00:56]} 22. exd5 {[%clk 0:00:13]}  b6 {[%clk 0:00:54]} 23. Qd2 {[%clk 0:00:13]}  Nb3 {[%clk 0:00:50]} 24. Qg5 {[%clk 0:00:13]}  Nxc1 {[%clk 0:00:49]} 25. Rxc1 {[%clk 0:00:14]}  Qd6 {[%clk 0:00:47]} 26. g4 {[%clk 0:00:13]}  Qf6 {[%clk 0:00:47]} 27. gxh5 {[%clk 0:00:11]}  Qxg5+ {[%clk 0:00:47]} 28. hxg5 {[%clk 0:00:12]}  gxh5 {[%clk 0:00:47]} 29. f4 {[%clk 0:00:13]}  Bd4+ {[%clk 0:00:46]} 30. Kg2 {[%clk 0:00:13]}  Rfc8 {[%clk 0:00:47]} 31. Kf3 {[%clk 0:00:12]}  Rxd5 {[%clk 0:00:45]} 32. Rh1 {[%clk 0:00:11]}  Rd6 {[%clk 0:00:42]} 33. Rxh5 {[%clk 0:00:11]}  Bg7 {[%clk 0:00:43]} 34. Be2 {[%clk 0:00:11]}  Rd2 {[%clk 0:00:41]} 35. Rh1 {[%clk 0:00:11]}  Ra8 {[%clk 0:00:39]} 36. Re1 {[%clk 0:00:08]}  Ra3+ {[%clk 0:00:39]} 37. Ke4 {[%clk 0:00:08]}  Rd4+ {[%clk 0:00:36]} 38. Kf5 {[%clk 0:00:09]}  Re3 {[%clk 0:00:37]} 39. g6 {[%clk 0:00:06]}  fxg6+ {[%clk 0:00:36]} 40. Kxg6 {[%clk 0:00:06]}  Rde4 {[%clk 0:00:35]} 41. c5 {[%clk 0:00:06]}  Rxe2 {[%clk 0:00:27]} 42. cxb6 {[%clk 0:00:06]}  Rxe1 {[%clk 0:00:27]} 43. b7 {[%clk 0:00:06]}  Re6+ {[%clk 0:00:28]} 44. Kf5 {[%clk 0:00:07]}  Rb6 {[%clk 0:00:29]} 45. Kg4 {[%clk 0:00:06]}  Rxb7 {[%clk 0:00:29]} 46. b6 {[%clk 0:00:07]}  Rxb6 {[%clk 0:00:29]} 47. Kf5 {[%clk 0:00:08]}  Rf6+ {[%clk 0:00:29]} 48. Kg5 {[%clk 0:00:08]}  Rg1+ {[%clk 0:00:30]} 49. Kh5 {[%clk 0:00:08]}  Kh7 {[%clk 0:00:30]} 50. Kh4 {[%clk 0:00:08]}  Rh6# {[%clk 0:00:31]} 0-1

[Event "December 5 Late 2023"]
[Site "https://www.chess.com"]
[Date "2023.12.05"]
[Round "9"]
[White "Marchesich, Giovanni"]
[Black "Bjelobrk, Igor"]
[Result "0-1"]
[Board "52"]
[TimeControl "180+1"]
[WhiteFideId "2824790"]
[BlackFideId "4300726"]
[WhiteElo "2426"]
[BlackElo "2582"]
[WhiteTeam "ITA"]
[BlackTeam "AUS"]
[WhiteClock "0:00:03"]
[BlackClock "0:01:20"]

1. e4 {[%clk 0:03:00]}  e6 {[%clk 0:02:57]} 2. d3 {[%clk 0:03:00]}  c5 {[%clk 0:02:55]} 3. g3 {[%clk 0:03:00]}  b6 {[%clk 0:02:55]} 4. Bg2 {[%clk 0:03:00]}  Bb7 {[%clk 0:02:55]} 5. f4 {[%clk 0:03:00]}  d6 {[%clk 0:02:48]} 6. Nf3 {[%clk 0:02:59]}  Nf6 {[%clk 0:02:48]} 7. O-O {[%clk 0:02:59]}  Qc7 {[%clk 0:02:46]} 8. a4 {[%clk 0:02:56]}  a6 {[%clk 0:02:46]} 9. Re1 {[%clk 0:02:55]}  Be7 {[%clk 0:02:44]} 10. h3 {[%clk 0:02:53]}  Nc6 {[%clk 0:02:40]} 11. c3 {[%clk 0:02:53]}  O-O {[%clk 0:02:28]} 12. d4 {[%clk 0:02:53]}  cxd4 {[%clk 0:02:28]} 13. cxd4 {[%clk 0:02:53]}  Nb4 {[%clk 0:02:27]} 14. Nc3 {[%clk 0:02:51]}  d5 {[%clk 0:02:22]} 15. e5 {[%clk 0:02:43]}  Ne4 {[%clk 0:02:22]} 16. Ra3 {[%clk 0:02:08]}  Nxg3 {[%clk 0:02:13]} 17. Be3 {[%clk 0:01:57]}  Nf5 {[%clk 0:02:13]} 18. Bf2 {[%clk 0:01:57]}  Rac8 {[%clk 0:02:11]} 19. Qd2 {[%clk 0:01:52]}  Qd7 {[%clk 0:02:07]} 20. Raa1 {[%clk 0:01:47]}  Rc7 {[%clk 0:02:06]} 21. Kh2 {[%clk 0:01:46]}  Rfc8 {[%clk 0:02:06]} 22. Rg1 {[%clk 0:01:46]}  a5 {[%clk 0:02:06]} 23. Bf1 {[%clk 0:01:46]}  Ba6 {[%clk 0:02:06]} 24. Bb5 {[%clk 0:01:45]}  Bxb5 {[%clk 0:02:06]} 25. axb5 {[%clk 0:01:45]}  Rc4 {[%clk 0:02:02]} 26. Rg2 {[%clk 0:01:44]}  g6 {[%clk 0:01:58]} 27. Rag1 {[%clk 0:01:44]}  a4 {[%clk 0:01:52]} 28. Ra1 {[%clk 0:01:37]}  Ra8 {[%clk 0:01:52]} 29. Rgg1 {[%clk 0:01:30]}  Ra5 {[%clk 0:01:42]} 30. Rgc1 {[%clk 0:01:29]}  Rxb5 {[%clk 0:01:40]} 31. Nxb5 {[%clk 0:01:26]}  Qxb5 {[%clk 0:01:41]} 32. Rxc4 {[%clk 0:01:21]}  dxc4 {[%clk 0:01:40]} 33. Ne1 {[%clk 0:01:12]}  Qd5 {[%clk 0:01:38]} 34. Rxa4 {[%clk 0:01:05]}  Nc6 {[%clk 0:01:38]} 35. Qc3 {[%clk 0:00:36]}  b5 {[%clk 0:01:38]} 36. Ra8+ {[%clk 0:00:36]}  Kg7 {[%clk 0:01:37]} 37. Ra1 {[%clk 0:00:33]}  Ncxd4 {[%clk 0:01:22]} 38. Rd1 {[%clk 0:00:21]}  Bc5 {[%clk 0:01:21]} 39. Kg1 {[%clk 0:00:03]}  Ne2+ {[%clk 0:01:20]} 0-1

[Event "December 5 Late 2023"]
[Site "https://www.chess.com"]
[Date "2023.12.05"]
[Round "9"]
[White "Rangel, Daniel"]
[Black "Bonin, Jay"]
[Result "1-0"]
[Board "54"]
[TimeControl "180+1"]
[WhiteFideId "2124475"]
[BlackFideId "2000644"]
[WhiteElo "2559"]
[BlackElo "2405"]
[WhiteTeam "BRA"]
[BlackTeam "USA"]
[WhiteClock "0:00:16"]
[BlackClock "0:00:47"]

1. c4 {[%clk 0:03:00]}  Nc6 {[%clk 0:02:57]} 2. g3 {[%clk 0:03:01]}  e5 {[%clk 0:02:56]} 3. Bg2 {[%clk 0:03:01]}  f5 {[%clk 0:02:56]} 4. Nc3 {[%clk 0:03:01]}  Nf6 {[%clk 0:02:56]} 5. e3 {[%clk 0:03:02]}  Bb4 {[%clk 0:02:55]} 6. Nge2 {[%clk 0:03:02]}  O-O {[%clk 0:02:54]} 7. O-O {[%clk 0:03:03]}  Bxc3 {[%clk 0:02:52]} 8. Nxc3 {[%clk 0:03:02]}  d6 {[%clk 0:02:52]} 9. d3 {[%clk 0:02:57]}  Be6 {[%clk 0:02:49]} 10. Nd5 {[%clk 0:02:56]}  Rb8 {[%clk 0:02:45]} 11. Rb1 {[%clk 0:02:53]}  Qd7 {[%clk 0:02:43]} 12. b4 {[%clk 0:02:50]}  b5 {[%clk 0:02:42]} 13. Nxf6+ {[%clk 0:02:34]}  Rxf6 {[%clk 0:02:40]} 14. cxb5 {[%clk 0:02:34]}  Rxb5 {[%clk 0:02:36]} 15. a4 {[%clk 0:02:32]}  Rb8 {[%clk 0:02:26]} 16. b5 {[%clk 0:02:30]}  Ne7 {[%clk 0:02:25]} 17. Qc2 {[%clk 0:02:26]}  Bd5 {[%clk 0:02:13]} 18. e4 {[%clk 0:01:49]}  f4 {[%clk 0:02:04]} 19. exd5 {[%clk 0:01:08]}  f3 {[%clk 0:02:02]} 20. Bh1 {[%clk 0:01:07]}  Ng6 {[%clk 0:01:27]} 21. Be3 {[%clk 0:00:41]}  Rbf8 {[%clk 0:01:16]} 22. Rfc1 {[%clk 0:00:39]}  Qh3 {[%clk 0:01:10]} 23. Qc4 {[%clk 0:00:27]}  Nf4 {[%clk 0:01:03]} 24. Bxf4 {[%clk 0:00:23]}  Rxf4 {[%clk 0:01:00]} 25. Qxc7 {[%clk 0:00:18]}  Rh4 {[%clk 0:00:54]} 26. gxh4 {[%clk 0:00:18]}  Rf4 {[%clk 0:00:47]} 27. Qc8+ {[%clk 0:00:16]} 1-0

[Event "December 5 Late 2023"]
[Site "https://www.chess.com"]
[Date "2023.12.05"]
[Round "9"]
[White "Wieczorek, Zbigniew"]
[Black "Schnaider, Ilan"]
[Result "1/2-1/2"]
[Board "55"]
[TimeControl "180+1"]
[WhiteFideId "1102001"]
[BlackFideId "169013"]
[WhiteElo "2246"]
[BlackElo "2682"]
[WhiteTeam "POL"]
[BlackTeam "ARG"]
[WhiteClock "0:00:19"]
[BlackClock "0:00:02"]

1. g3 {[%clk 0:02:59]}  Nf6 {[%clk 0:02:59]} 2. Bg2 {[%clk 0:03:00]}  g6 {[%clk 0:03:00]} 3. c4 {[%clk 0:02:59]}  Bg7 {[%clk 0:02:59]} 4. Nc3 {[%clk 0:02:59]}  O-O {[%clk 0:02:58]} 5. Nf3 {[%clk 0:02:59]}  Nc6 {[%clk 0:02:58]} 6. O-O {[%clk 0:02:59]}  d5 {[%clk 0:02:58]} 7. cxd5 {[%clk 0:02:59]}  Nxd5 {[%clk 0:02:59]} 8. a3 {[%clk 0:02:46]}  e5 {[%clk 0:02:53]} 9. d3 {[%clk 0:02:42]}  h6 {[%clk 0:02:41]} 10. Nxd5 {[%clk 0:02:32]}  Qxd5 {[%clk 0:02:41]} 11. Be3 {[%clk 0:02:33]}  Bg4 {[%clk 0:02:11]} 12. Nd4 {[%clk 0:02:28]}  Qd7 {[%clk 0:01:21]} 13. Nxc6 {[%clk 0:02:25]}  bxc6 {[%clk 0:01:22]} 14. Rc1 {[%clk 0:02:25]}  e4 {[%clk 0:00:38]} 15. Bxe4 {[%clk 0:02:09]}  Bxb2 {[%clk 0:00:36]} 16. Bxc6 {[%clk 0:01:51]}  Qe6 {[%clk 0:00:32]} 17. Rc2 {[%clk 0:01:28]}  Rab8 {[%clk 0:00:28]} 18. Bxh6 {[%clk 0:01:18]}  Bg7 {[%clk 0:00:15]} 19. Bxg7 {[%clk 0:01:17]}  Kxg7 {[%clk 0:00:16]} 20. Qa1+ {[%clk 0:01:08]}  Kh7 {[%clk 0:00:15]} 21. Be4 {[%clk 0:00:47]}  Rbc8 {[%clk 0:00:14]} 22. Rfc1 {[%clk 0:00:45]}  Qd6 {[%clk 0:00:11]} 23. Rc6 {[%clk 0:00:42]}  Qe7 {[%clk 0:00:11]} 24. e3 {[%clk 0:00:32]}  Bh3 {[%clk 0:00:06]} 25. Qc3 {[%clk 0:00:30]}  Kg8 {[%clk 0:00:03]} 26. a4 {[%clk 0:00:27]}  a6 {[%clk 0:00:02]} 27. Rxc7 {[%clk 0:00:24]}  Rxc7 {[%clk 0:00:02]} 28. Qxc7 {[%clk 0:00:24]}  Qa3 {[%clk 0:00:03]} 29. Qc4 {[%clk 0:00:21]}  Rc8 {[%clk 0:00:01]} 30. Qxc8+ {[%clk 0:00:19]}  Bxc8 {[%clk 0:00:02]} 31. Rxc8+ {[%clk 0:00:18]}  Kg7 {[%clk 0:00:03]} 32. Rc4 {[%clk 0:00:18]}  Qa1+ {[%clk 0:00:02]} 33. Kg2 {[%clk 0:00:18]}  f5 {[%clk 0:00:03]} 34. Bf3 {[%clk 0:00:17]}  Qa3 {[%clk 0:00:03]} 35. d4 {[%clk 0:00:17]}  Qb3 {[%clk 0:00:03]} 36. Rc7+ {[%clk 0:00:16]}  Kh6 {[%clk 0:00:03]} 37. a5 {[%clk 0:00:15]}  Qb5 {[%clk 0:00:02]} 38. Rc5 {[%clk 0:00:16]}  Qb4 {[%clk 0:00:02]} 39. h4 {[%clk 0:00:16]}  Qb3 {[%clk 0:00:01]} 40. Bd5 {[%clk 0:00:16]}  Qb4 {[%clk 0:00:01]} 41. Bf7 {[%clk 0:00:16]}  Qb7+ {[%clk 0:00:01]} 42. Bd5 {[%clk 0:00:16]}  Qd7 {[%clk 0:00:02]} 43. Bf3 {[%clk 0:00:17]}  Qd6 {[%clk 0:00:02]} 44. Rd5 {[%clk 0:00:17]}  Qb4 {[%clk 0:00:02]} 45. Rc5 {[%clk 0:00:18]}  Qd2 {[%clk 0:00:02]} 46. Rd5 {[%clk 0:00:18]}  Qb4 {[%clk 0:00:02]} 47. Rc5 {[%clk 0:00:19]} 1/2-1/2

[Event "December 5 Late 2023"]
[Site "https://www.chess.com"]
[Date "2023.12.05"]
[Round "9"]
[White "Rosen, Eric"]
[Black "NovakRatko"]
[Result "1-0"]
[Board "56"]
[TimeControl "180+1"]
[WhiteFideId "2032562"]
[WhiteElo "2680"]
[BlackElo "2471"]
[WhiteTeam "USA"]
[WhiteClock "0:00:18"]
[BlackClock "0:00:15"]

1. e4 {[%clk 0:03:00]}  d5 {[%clk 0:02:58]} 2. exd5 {[%clk 0:03:00]}  c6 {[%clk 0:02:58]} 3. dxc6 {[%clk 0:02:56]}  Nxc6 {[%clk 0:02:59]} 4. Nf3 {[%clk 0:02:56]}  e5 {[%clk 0:02:59]} 5. Bc4 {[%clk 0:02:49]}  Bd6 {[%clk 0:02:59]} 6. d3 {[%clk 0:02:48]}  Nf6 {[%clk 0:02:58]} 7. h3 {[%clk 0:02:44]}  O-O {[%clk 0:02:58]} 8. O-O {[%clk 0:02:41]}  h6 {[%clk 0:02:58]} 9. Nc3 {[%clk 0:02:40]}  Bf5 {[%clk 0:02:57]} 10. Re1 {[%clk 0:02:39]}  a6 {[%clk 0:02:56]} 11. Be3 {[%clk 0:02:33]}  Qc7 {[%clk 0:02:50]} 12. Nd5 {[%clk 0:02:26]}  Nxd5 {[%clk 0:02:48]} 13. Bxd5 {[%clk 0:02:27]}  Rad8 {[%clk 0:02:48]} 14. Bb3 {[%clk 0:02:27]}  e4 {[%clk 0:02:46]} 15. Nh4 {[%clk 0:01:51]}  Bh7 {[%clk 0:02:45]} 16. Qh5 {[%clk 0:01:42]}  exd3 {[%clk 0:02:19]} 17. cxd3 {[%clk 0:01:42]}  Bh2+ {[%clk 0:02:09]} 18. Kh1 {[%clk 0:01:42]}  Rxd3 {[%clk 0:02:04]} 19. Bc5 {[%clk 0:01:18]}  Bd6 {[%clk 0:01:54]} 20. Bxd6 {[%clk 0:00:43]}  Rxd6 {[%clk 0:01:37]} 21. Rad1 {[%clk 0:00:43]}  Rxd1 {[%clk 0:01:15]} 22. Rxd1 {[%clk 0:00:43]}  Qe5 {[%clk 0:01:05]} 23. Qxe5 {[%clk 0:00:31]}  Nxe5 {[%clk 0:01:04]} 24. f4 {[%clk 0:00:26]}  Nd3 {[%clk 0:00:54]} 25. Rd2 {[%clk 0:00:27]}  Rc8 {[%clk 0:00:41]} 26. f5 {[%clk 0:00:23]}  Kf8 {[%clk 0:00:39]} 27. Rxd3 {[%clk 0:00:22]}  g5 {[%clk 0:00:27]} 28. fxg6 {[%clk 0:00:21]}  fxg6 {[%clk 0:00:26]} 29. Rd7 {[%clk 0:00:21]}  Bg8 {[%clk 0:00:24]} 30. Nxg6+ {[%clk 0:00:20]}  Ke8 {[%clk 0:00:24]} 31. Re7+ {[%clk 0:00:20]}  Kd8 {[%clk 0:00:24]} 32. Bxg8 {[%clk 0:00:21]}  Rc6 {[%clk 0:00:22]} 33. Rg7 {[%clk 0:00:19]}  Rc1+ {[%clk 0:00:20]} 34. Kh2 {[%clk 0:00:19]}  Rc2 {[%clk 0:00:21]} 35. b4 {[%clk 0:00:19]}  Rb2 {[%clk 0:00:21]} 36. Bb3 {[%clk 0:00:19]}  h5 {[%clk 0:00:19]} 37. Rh7 {[%clk 0:00:18]}  Rxb3 {[%clk 0:00:15]} 38. axb3 {[%clk 0:00:18]} 1-0

[Event "December 5 Late 2023"]
[Site "https://www.chess.com"]
[Date "2023.12.05"]
[Round "9"]
[White "Goltsev, Dmitry"]
[Black "Mizzi, Jack"]
[Result "1-0"]
[Board "57"]
[TimeControl "180+1"]
[WhiteFideId "24176710"]
[BlackFideId "5602521"]
[WhiteElo "2635"]
[BlackElo "2453"]
[WhiteTeam "RUS"]
[BlackTeam "MLT"]
[WhiteClock "0:01:13"]
[BlackClock "0:00:00"]

1. e4 {[%clk 0:02:58]}  c6 {[%clk 0:02:59]} 2. d4 {[%clk 0:02:56]}  d5 {[%clk 0:02:59]} 3. Nc3 {[%clk 0:02:57]}  dxe4 {[%clk 0:03:00]} 4. Nxe4 {[%clk 0:02:57]}  Bf5 {[%clk 0:02:59]} 5. Ng3 {[%clk 0:02:56]}  Bg6 {[%clk 0:02:59]} 6. Nh3 {[%clk 0:02:57]}  Nd7 {[%clk 0:02:51]} 7. Nf4 {[%clk 0:02:57]}  e6 {[%clk 0:02:44]} 8. h4 {[%clk 0:02:57]}  Ngf6 {[%clk 0:02:10]} 9. h5 {[%clk 0:02:56]}  Bf5 {[%clk 0:02:11]} 10. Nxf5 {[%clk 0:02:52]}  exf5 {[%clk 0:02:11]} 11. Bc4 {[%clk 0:02:52]}  Bd6 {[%clk 0:02:10]} 12. Qd3 {[%clk 0:02:44]}  Qe7+ {[%clk 0:02:06]} 13. Ne2 {[%clk 0:02:38]}  b5 {[%clk 0:02:02]} 14. Bb3 {[%clk 0:02:31]}  Qe4 {[%clk 0:02:01]} 15. Qxe4+ {[%clk 0:02:24]}  fxe4 {[%clk 0:01:53]} 16. h6 {[%clk 0:02:24]}  gxh6 {[%clk 0:01:48]} 17. Rxh6 {[%clk 0:02:22]}  O-O-O {[%clk 0:01:44]} 18. Bg5 {[%clk 0:02:16]}  Be7 {[%clk 0:01:39]} 19. Bxf7 {[%clk 0:02:12]}  Rdf8 {[%clk 0:01:39]} 20. Be6 {[%clk 0:02:08]}  Kc7 {[%clk 0:01:28]} 21. Ng3 {[%clk 0:02:02]}  Nd5 {[%clk 0:01:14]} 22. Bxd5 {[%clk 0:01:57]}  Bxg5 {[%clk 0:01:13]} 23. Rxc6+ {[%clk 0:01:56]}  Kb8 {[%clk 0:01:11]} 24. Nxe4 {[%clk 0:01:52]}  Be7 {[%clk 0:01:02]} 25. O-O-O {[%clk 0:01:27]}  Nb6 {[%clk 0:00:56]} 26. Bb3 {[%clk 0:01:23]}  Rf4 {[%clk 0:00:52]} 27. f3 {[%clk 0:01:23]}  h5 {[%clk 0:00:41]} 28. d5 {[%clk 0:01:23]}  h4 {[%clk 0:00:31]} 29. d6 {[%clk 0:01:22]}  Bd8 {[%clk 0:00:30]} 30. d7 {[%clk 0:01:22]}  Bc7 {[%clk 0:00:21]} 31. Nc5 {[%clk 0:01:16]}  Rff8 {[%clk 0:00:06]} 32. Rxc7 {[%clk 0:01:11]}  Kxc7 {[%clk 0:00:03]} 33. Ne6+ {[%clk 0:01:12]}  Kc6 {[%clk 0:00:03]} 34. Nxf8 {[%clk 0:01:12]}  Rxf8 {[%clk 0:00:01]} 35. d8=Q {[%clk 0:01:13]}  Rxd8 {[%clk 0:00:01]} 36. Rxd8 {[%clk 0:01:13]}  h3 {[%clk 0:00:00]} 37. gxh3 {[%clk 0:01:13]} 1-0

[Event "December 5 Late 2023"]
[Site "https://www.chess.com"]
[Date "2023.12.05"]
[Round "9"]
[White "Uryupin, Igor"]
[Black "Bijaoui, Manuel"]
[Result "1-0"]
[Board "60"]
[TimeControl "180+1"]
[WhiteFideId "4182529"]
[BlackFideId "626783"]
[WhiteElo "2439"]
[BlackElo "2546"]
[WhiteTeam "RUS"]
[BlackTeam "FRA"]
[WhiteClock "0:00:28"]
[BlackClock "0:00:02"]

1. d4 {[%clk 0:03:00]}  Nf6 {[%clk 0:02:58]} 2. Nf3 {[%clk 0:03:00]}  g6 {[%clk 0:02:57]} 3. c4 {[%clk 0:02:55]}  Bg7 {[%clk 0:02:57]} 4. Nc3 {[%clk 0:02:55]}  d6 {[%clk 0:02:57]} 5. e4 {[%clk 0:02:55]}  O-O {[%clk 0:02:58]} 6. Be2 {[%clk 0:02:55]}  e5 {[%clk 0:02:56]} 7. Kf1 {[%clk 0:02:55]}  exd4 {[%clk 0:02:56]} 8. Nxd4 {[%clk 0:02:55]}  Re8 {[%clk 0:02:56]} 9. f3 {[%clk 0:02:53]}  c6 {[%clk 0:02:53]} 10. Nc2 {[%clk 0:02:48]}  Na6 {[%clk 0:02:37]} 11. Bg5 {[%clk 0:02:38]}  h6 {[%clk 0:02:30]} 12. Bh4 {[%clk 0:02:36]}  g5 {[%clk 0:02:28]} 13. Bf2 {[%clk 0:02:33]}  Be6 {[%clk 0:02:24]} 14. b3 {[%clk 0:02:30]}  d5 {[%clk 0:02:22]} 15. cxd5 {[%clk 0:02:25]}  cxd5 {[%clk 0:02:22]} 16. exd5 {[%clk 0:02:13]}  Nxd5 {[%clk 0:02:21]} 17. Nxd5 {[%clk 0:02:13]}  Bxa1 {[%clk 0:02:16]} 18. Qxa1 {[%clk 0:02:12]}  Bxd5 {[%clk 0:02:14]} 19. h4 {[%clk 0:02:05]}  g4 {[%clk 0:02:08]} 20. Ne3 {[%clk 0:01:57]}  Be6 {[%clk 0:02:01]} 21. fxg4 {[%clk 0:01:53]}  Qd2 {[%clk 0:01:57]} 22. g5 {[%clk 0:01:46]}  Rac8 {[%clk 0:01:48]} 23. Nc4 {[%clk 0:01:37]}  Bxc4 {[%clk 0:00:26]} 24. Bxc4 {[%clk 0:01:34]}  Re2 {[%clk 0:00:21]} 25. Bxe2 {[%clk 0:01:29]}  Rc1+ {[%clk 0:00:20]} 26. Qxc1 {[%clk 0:01:22]}  Qxc1+ {[%clk 0:00:21]} 27. Be1 {[%clk 0:01:21]}  Nc5 {[%clk 0:00:21]} 28. Rh3 {[%clk 0:01:12]}  Ne4 {[%clk 0:00:21]} 29. Bd3 {[%clk 0:01:04]}  hxg5 {[%clk 0:00:12]} 30. Bxe4 {[%clk 0:01:00]}  Qf4+ {[%clk 0:00:13]} 31. Bf3 {[%clk 0:00:57]}  g4 {[%clk 0:00:13]} 32. Rg3 {[%clk 0:00:54]}  f5 {[%clk 0:00:12]} 33. Kg1 {[%clk 0:00:53]}  Qc1 {[%clk 0:00:10]} 34. Kf1 {[%clk 0:00:47]}  Kf7 {[%clk 0:00:09]} 35. Bd5+ {[%clk 0:00:43]}  Ke7 {[%clk 0:00:07]} 36. Rd3 {[%clk 0:00:39]}  a6 {[%clk 0:00:06]} 37. g3 {[%clk 0:00:34]}  b5 {[%clk 0:00:06]} 38. Rd2 {[%clk 0:00:30]}  Qc3 {[%clk 0:00:05]} 39. Re2+ {[%clk 0:00:29]}  Qe5 {[%clk 0:00:02]} 40. Rxe5+ {[%clk 0:00:28]} 1-0

[Event "December 5 Late 2023"]
[Site "https://www.chess.com"]
[Date "2023.12.05"]
[Round "9"]
[White "Przybylski, Wojciech"]
[Black "Zhou, Qiyu"]
[Result "0-1"]
[Board "61"]
[TimeControl "180+1"]
[WhiteFideId "1117599"]
[BlackFideId "505161"]
[WhiteElo "2545"]
[BlackElo "2431"]
[WhiteTeam "POL"]
[BlackTeam "CAN"]
[WhiteClock "0:00:01"]
[BlackClock "0:00:38"]

1. e4 {[%clk 0:02:59]}  e5 {[%clk 0:02:47]} 2. Nf3 {[%clk 0:02:57]}  Nc6 {[%clk 0:02:48]} 3. Bb5 {[%clk 0:02:50]}  a6 {[%clk 0:02:45]} 4. Ba4 {[%clk 0:02:49]}  Nf6 {[%clk 0:02:46]} 5. O-O {[%clk 0:02:49]}  b5 {[%clk 0:02:46]} 6. Bb3 {[%clk 0:02:48]}  Be7 {[%clk 0:02:46]} 7. d3 {[%clk 0:02:48]}  O-O {[%clk 0:02:46]} 8. Re1 {[%clk 0:02:47]}  d6 {[%clk 0:02:47]} 9. h3 {[%clk 0:02:47]}  Na5 {[%clk 0:02:41]} 10. c4 {[%clk 0:02:44]}  bxc4 {[%clk 0:02:36]} 11. Bxc4 {[%clk 0:02:40]}  Nxc4 {[%clk 0:02:35]} 12. dxc4 {[%clk 0:02:40]}  Bb7 {[%clk 0:02:35]} 13. Nc3 {[%clk 0:02:39]}  Qc8 {[%clk 0:02:36]} 14. b3 {[%clk 0:02:35]}  h6 {[%clk 0:02:35]} 15. Nh2 {[%clk 0:02:31]}  Qe6 {[%clk 0:02:26]} 16. Nf1 {[%clk 0:02:30]}  Nh7 {[%clk 0:02:24]} 17. Nd5 {[%clk 0:02:24]}  Bd8 {[%clk 0:02:19]} 18. Ng3 {[%clk 0:02:20]}  c6 {[%clk 0:02:18]} 19. Nc3 {[%clk 0:02:13]}  Bb6 {[%clk 0:02:15]} 20. Nf5 {[%clk 0:02:03]}  Rad8 {[%clk 0:02:08]} 21. Qg4 {[%clk 0:01:56]}  g6 {[%clk 0:01:50]} 22. Nxh6+ {[%clk 0:01:48]}  Kh8 {[%clk 0:01:34]} 23. Bg5 {[%clk 0:01:37]}  Qxg4 {[%clk 0:01:31]} 24. Nxg4 {[%clk 0:01:28]}  Nxg5 {[%clk 0:01:31]} 25. h4 {[%clk 0:00:53]}  Ne6 {[%clk 0:01:30]} 26. g3 {[%clk 0:00:53]}  Nd4 {[%clk 0:01:30]} 27. Red1 {[%clk 0:00:38]}  f5 {[%clk 0:01:28]} 28. exf5 {[%clk 0:00:31]}  gxf5 {[%clk 0:01:29]} 29. Ne3 {[%clk 0:00:25]}  f4 {[%clk 0:01:29]} 30. Ng4 {[%clk 0:00:15]}  fxg3 {[%clk 0:01:28]} 31. Na4 {[%clk 0:00:12]}  Ba7 {[%clk 0:01:21]} 32. c5 {[%clk 0:00:10]}  gxf2+ {[%clk 0:01:18]} 33. Nxf2 {[%clk 0:00:10]}  dxc5 {[%clk 0:01:19]} 34. Ne4 {[%clk 0:00:07]}  c4 {[%clk 0:01:15]} 35. Kh2 {[%clk 0:00:06]}  Nf3+ {[%clk 0:01:08]} 36. Kg3 {[%clk 0:00:05]}  Nd4 {[%clk 0:01:02]} 37. Ng5 {[%clk 0:00:04]}  cxb3 {[%clk 0:00:59]} 38. axb3 {[%clk 0:00:04]}  Ne2+ {[%clk 0:00:54]} 39. Kg4 {[%clk 0:00:03]}  Bc8+ {[%clk 0:00:45]} 40. Ne6 {[%clk 0:00:02]}  Bxe6+ {[%clk 0:00:45]} 41. Kg5 {[%clk 0:00:02]}  Rf5+ {[%clk 0:00:42]} 42. Kh6 {[%clk 0:00:03]}  Rdf8 {[%clk 0:00:39]} 43. Rf1 {[%clk 0:00:02]}  Be3+ {[%clk 0:00:40]} 44. Kg6 {[%clk 0:00:01]}  R8f6# {[%clk 0:00:38]} 0-1